bitfinex/quotes_ETHUSD_20240819
["timestamp","ask_amount","ask_price","bid_price","bid_amount"]
[1724031046813,7.29,2627.9,2627.3,3.80618]
[1724031047013,7.29,2627.9,2627.4,3.80592]
[1724031047207,3.913508,2628.2,2627.4,3.80592]
[1724031047208,3.913508,2628.2,2627.5,2.4562]
[1724031047484,3.913508,2628.2,2627.7,3.80557]
[1724031047748,3.913508,2628.2,2627.5,6.26205]
[1724031048257,3.80512,2628.1,2627.5,6.26205]
[1724031048404,3.80522,2628.0,2627.5,2.4562]
[1724031048608,3.80555,2627.8,2627.2,2.3467]
[1724031048810,3.80579,2627.6,2627.2,5.3467]
[1724031049017,2.392,2628.0,2626.5,4.488036]
[1724031049018,3.80631,2627.3,2626.8,2.3467]
[1724031049267,3.80647,2627.1,2626.8,2.3467]
[1724031049759,3.80686,2626.9,2626.4,2.3467]
[1724031050926,3.80714,2626.7,2626.4,2.3467]
[1724031052313,3.80684,2626.9,2626.4,2.3467]
[1724031052513,3.80692,2626.8,2626.4,2.3467]
[1724031052826,3.80706,2626.7,2626.4,2.3467]
[1724031053157,7.61422,2626.7,2626.4,2.3467]
[1724031053317,3.80735,2626.5,2626.1,2.3489]
[1724031053747,3.80772,2626.3,2626.1,2.3489]
[1724031054440,7.61545,2626.3,2626.1,2.3489]
[1724031054656,3.80772,2626.3,2626.1,2.3489]
[1724031055518,7.61547,2626.3,2626.1,2.3489]
[1724031055829,3.80772,2626.3,2626.1,2.3489]
[1724031056033,7.61547,2626.3,2625.8,5.3426]
[1724031056337,3.80772,2626.3,2625.8,5.3426]
[1724031056523,4.188135,2626.5,2625.9,3.0]
[1724031057454,3.8074,2626.5,2625.9,6.80808]
[1724031057639,3.8074,2626.5,2626.0,3.80803]
[1724031058026,3.80711,2626.7,2626.1,6.12631]
[1724031058221,3.80711,2626.7,2626.1,7.419744]
[1724031058463,3.80711,2626.7,2626.1,6.12631]
[1724031058839,7.61427,2626.7,2626.1,6.12631]
[1724031059040,3.80711,2626.7,2626.1,6.12631]
[1724031059457,7.29,2626.8,2626.2,3.80775]
[1724031059656,11.09692,2626.8,2626.2,3.80768]
[1724031059828,11.09696,2626.8,2626.2,3.80768]
[1724031060033,3.80709,2626.7,2626.2,3.80768]
[1724031060474,7.29,2626.8,2626.4,3.80748]
[1724031060634,7.29,2626.8,2626.3,3.80759]
[1724031061185,3.8072,2626.6,2626.1,2.3184]
[1724031061396,1.490372,2626.7,2626.1,2.3184]
[1724031061601,7.61494,2626.5,2625.9,9.3]
[1724031062498,3.80721,2626.6,2626.1,3.8079]
[1724031062654,3.80713,2626.7,2626.1,3.8079]
[1724031062655,7.61428,2626.7,2626.1,3.8079]
[1724031063182,3.80723,2626.6,2626.2,2.4381]
[1724031063383,5.531078,2626.7,2626.2,2.4381]
[1724031063916,7.29,2626.8,2626.3,3.80754]
[1724031064067,0.05431228,2627.0,2626.5,3.80726]
[1724031064265,3.80655,2627.1,2626.6,2.4992]
[1724031064467,3.80635,2627.2,2626.6,2.4992]
[1724031064671,3.80635,2627.2,2626.7,3.80697]
[1724031065282,6.12975,2627.4,2626.7,3.80697]
[1724031065597,3.80577,2627.6,2627.1,3.80645]
[1724031065763,3.80556,2627.8,2627.2,3.80632]
[1724031065968,3.80555,2627.8,2627.3,3.80618]
[1724031066200,3.80504,2628.1,2627.5,6.30496]
[1724031067273,3.80504,2628.1,2627.5,10.11077]
[1724031067589,7.75778996,2628.2,2627.5,6.30496]
[1724031067793,4.62023218,2628.2,2627.5,6.30496]
[1724031068097,0.14781996,2628.2,2627.7,3.80558]
[1724031068254,0.14781996,2628.2,2627.5,6.30497]
[1724031068456,3.95271996,2628.2,2627.6,3.80571]
[1724031068754,3.95271996,2628.2,2627.6,4.816778]
[1724031069080,3.80521,2628.0,2627.5,2.4992]
[1724031069400,3.95271996,2628.2,2627.5,6.30507]
[1724031069898,3.80555,2627.8,2627.3,3.0]
[1724031070053,3.80555,2627.8,2627.2,9.29942]
[1724031070258,3.80555,2627.8,2627.2,10.610014]
[1724031070981,7.61115,2627.8,2627.2,10.610014]
[1724031071290,3.80555,2627.8,2627.2,10.610014]
[1724031071670,3.87709933,2628.0,2627.3,3.80605]
[1724031071890,3.87709933,2628.0,2627.3,5.2476564]
[1724031072193,3.87709933,2628.0,2627.3,1.4416064]
[1724031072365,3.80524,2628.0,2627.2,5.4931]
[1724031072564,3.80524,2628.0,2627.2,2.4931]
[1724031072754,0.108548,2628.2,2627.6,2.3288]
[1724031072959,0.108548,2628.2,2627.7,3.80549]
[1724031073502,3.913438,2628.2,2627.7,3.80549]
[1724031074103,3.913438,2628.2,2627.6,5.3288]
[1724031074276,3.913438,2628.2,2627.7,0.913464]
[1724031074455,3.80526,2628.0,2627.6,3.0]
[1724031074654,3.80526,2628.0,2627.5,3.0]
[1724031074655,3.80548,2627.8,2627.5,3.0]
[1724031074862,3.80548,2627.8,2627.3,2.3168]
[1724031075170,3.80548,2627.8,2627.3,6.339748]
[1724031075570,3.80525,2628.0,2627.4,3.80603]
[1724031075769,3.80533,2627.9,2627.3,6.339748]
[1724031076078,3.80533,2627.9,2627.4,1.0145968]
[1724031076281,3.80533,2627.9,2627.4,4.0145968]
[1724031076497,3.80525,2628.0,2627.4,11.6265868]
[1724031076816,3.80525,2628.0,2627.4,7.8205468]
[1724031077039,3.80525,2628.0,2627.5,4.81957468]
[1724031077313,3.80525,2628.0,2627.5,1.01373468]
[1724031078280,3.80525,2628.0,2627.5,4.81960468]
[1724031078481,7.61055,2628.0,2627.5,1.01373468]
[1724031078684,3.80525,2628.0,2627.5,1.01373468]
[1724031078900,3.80525,2628.0,2627.6,0.78196847]
[1724031080281,3.80535,2627.9,2627.4,3.0]
[1724031080487,3.80547,2627.8,2627.4,3.0]
[1724031080682,3.80547,2627.8,2627.3,2.3168]
[1724031080683,3.80547,2627.8,2627.3,9.12298]
[1724031080884,3.80547,2627.8,2627.4,0.612304]
[1724031081136,3.80547,2627.8,2627.4,3.612304]
[1724031081298,3.80525,2628.0,2627.4,3.612304]
[1724031081495,3.80525,2628.0,2627.4,7.418334]
[1724031081828,3.913508,2628.2,2627.5,5.1599414]
[1724031081829,3.80503,2628.1,2627.5,5.1599414]
[1724031082045,3.913508,2628.2,2627.6,2.2883]
[1724031082046,0.108548,2628.2,2627.6,2.2883]
[1724031082182,0.108548,2628.2,2627.7,4.16972314]
[1724031083038,3.913448,2628.2,2627.7,0.36424314]
[1724031083240,3.80505,2628.1,2627.6,6.09404]
[1724031083441,3.80505,2628.1,2627.6,7.384039]
[1724031084645,3.913438,2628.2,2627.6,7.383939]
[1724031084847,0.108548,2628.2,2627.7,3.8056]
[1724031085153,0.108548,2628.2,2627.8,1.1189539]
[1724031087135,0.108548,2628.2,2627.8,4.9243639]
[1724031087334,0.108548,2628.2,2627.8,8.7297339]
[1724031087541,0.108548,2628.2,2627.9,6.13371]
[1724031087694,0.108548,2628.2,2628.0,0.72526639]
[1724031088599,0.108548,2628.2,2628.0,4.53029639]
[1724031088910,0.108548,2628.2,2628.0,3.80503]
[1724031089119,0.108548,2628.2,2628.1,7.61006]
[1724031089428,0.108548,2628.2,2628.1,10.07376]
[1724031089623,0.108548,2628.2,2628.1,14.461664]
[1724031090353,0.108548,2628.2,2628.1,4.387904]
[1724031090536,0.108548,2628.2,2628.1,3.0]
[1724031090840,3.80527,2628.0,2627.6,2.3372]
[1724031090999,3.80527,2628.0,2627.3,6.1433]
[1724031091199,3.80556,2627.8,2627.4,0.38061]
[1724031091640,7.6111,2627.8,2627.4,0.38061]
[1724031091825,3.80554,2627.8,2627.4,0.38061]
[1724031091998,2.3575,2628.1,2627.0,2.3372]
[1724031092198,3.80612,2627.4,2627.1,0.614388]
[1724031092399,3.80612,2627.4,2627.0,2.3372]
[1724031092646,3.80622,2627.3,2627.0,2.3372]
[1724031093005,3.80635,2627.2,2626.7,2.3372]
[1724031093203,3.80622,2627.3,2626.7,2.3372]
[1724031093401,3.80595,2627.5,2626.8,4.421216]
[1724031093634,3.80595,2627.5,2627.0,6.14378]
[1724031093942,6.1627,2628.0,2627.2,3.80624]
[1724031093943,3.80556,2627.8,2627.2,3.80624]
[1724031094242,3.80556,2627.8,2627.3,0.380624]
[1724031094545,3.80566,2627.7,2627.0,6.14372]
[1724031094731,3.80575,2627.6,2627.0,6.14372]
[1724031094917,3.80575,2627.6,2627.1,0.614372]
[1724031095276,3.80577,2627.6,2627.1,0.614372]
[1724031096703,3.80577,2627.6,2627.1,4.420802]
[1724031096903,3.85493548,2627.9,2627.1,4.420802]
[1724031096904,3.80559,2627.8,2627.1,4.420802]
[1724031097341,3.80559,2627.8,2627.2,4.8627222]
[1724031097556,0.04953548,2627.9,2627.3,5.2995]
[1724031097705,3.80541,2627.9,2627.3,5.2995]
[1724031098139,11.0951,2628.1,2627.3,5.2995]
[1724031098398,11.0951,2628.1,2627.4,4.33589]
[1724031098399,3.80525,2628.0,2627.4,4.33589]
[1724031098825,3.80525,2628.0,2627.4,8.14184]
[1724031099029,3.8051,2628.1,2627.4,4.33589]
[1724031099232,3.80517,2628.0,2627.5,1.044134]
[1724031100377,3.80535,2627.9,2627.3,2.2995]
[1724031100657,0.108548,2628.2,2627.3,2.2995]
[1724031100658,3.80572,2627.7,2627.3,2.2995]
[1724031100819,3.8052,2628.0,2627.3,6.10564]
[1724031101179,3.8052,2628.0,2627.4,3.80602]
[1724031101515,3.8052,2628.0,2627.3,6.10564]
[1724031101516,3.80551,2627.8,2627.3,6.10564]
[1724031101710,3.80551,2627.8,2627.3,7.396847]
[1724031103019,3.8052,2628.0,2627.4,3.80604]
[1724031103422,7.61046,2628.0,2627.4,3.80604]
[1724031103717,3.913488,2628.2,2627.6,2.4063]
[1724031103916,3.913488,2628.2,2627.7,3.8056]
[1724031104617,0.108548,2628.2,2627.8,3.80546]
[1724031104813,0.108548,2628.2,2627.9,0.761106]
[1724031105115,0.108548,2628.2,2627.8,3.80545]
[1724031105350,0.108548,2628.2,2627.9,3.80525]
[1724031105548,0.108548,2628.2,2628.1,2.4063]
[1724031106316,0.108548,2628.2,2628.1,10.01636]
[1724031106512,0.108548,2628.2,2628.1,13.01636]
[1724031107128,0.108548,2628.2,2628.1,16.82139]
[1724031109775,0.108548,2628.2,2628.1,13.01636]
[1724031109915,0.108548,2628.2,2628.1,10.96191047]
[1724031110118,0.108548,2628.2,2628.1,4.75058047]
[1724031110421,0.108548,2628.2,2628.0,0.380525]
[1724031110626,0.108548,2628.2,2627.8,3.80537]
[1724031110965,0.108548,2628.2,2627.7,6.22805]
[1724031111180,0.108548,2628.2,2627.8,3.80534]
[1724031112179,0.108548,2628.2,2627.4,0.7396847]
[1724031112180,0.108548,2628.2,2627.4,4.5456447]
[1724031112462,3.80527,2628.0,2627.5,0.69681447]
[1724031113327,3.913508,2628.2,2627.5,0.69681447]
[1724031113524,3.913508,2628.2,2627.6,3.80573]
[1724031113723,3.80504,2628.1,2627.6,3.80573]
[1724031114074,3.913508,2628.2,2627.7,0.97879445]
[1724031114633,0.108548,2628.2,2627.7,0.97879445]
[1724031114931,0.108548,2628.2,2627.9,9.89585]
[1724031115139,0.108548,2628.2,2628.0,3.80516]
[1724031115374,0.108548,2628.2,2628.1,0.989577]
[1724031116487,0.108548,2628.2,2628.1,4.794607]
[1724031116792,0.108548,2628.2,2628.1,8.599637]
[1724031118388,0.108548,2628.2,2628.1,10.921237]
[1724031118538,0.108548,2628.2,2628.1,13.921237]
[1724031118977,0.108548,2628.2,2628.1,14.471237]
[1724031119182,7.29,2629.4,2629.0,3.80366]
[1724031119336,3.80295,2629.6,2629.0,3.80366]
[1724031119533,3.80295,2629.6,2628.9,6.12545]
[1724031119776,3.80295,2629.6,2629.0,3.8037]
[1724031120079,3.80295,2629.6,2628.9,3.80385]
[1724031120080,3.80318,2629.4,2628.9,3.80385]
[1724031120305,3.80295,2629.6,2629.0,3.80359]
[1724031120306,3.80291,2629.6,2629.0,3.80359]
[1724031120513,3.80324,2629.4,2628.9,2.4287]
[1724031120656,2.4748,2629.7,2628.9,5.4287]
[1724031120657,3.80329,2629.3,2628.9,5.4287]
[1724031120852,3.80313,2629.5,2628.9,5.4287]
[1724031121043,7.60624,2629.5,2628.9,6.35196]
[1724031121239,3.80278,2629.7,2628.9,6.35196]
[1724031121469,11.09253,2629.9,2629.2,3.80334]
[1724031121672,3.80272,2629.7,2629.0,4.438816]
[1724031122000,3.80302,2629.5,2628.9,9.2325]
[1724031122141,3.80272,2629.7,2629.1,3.80355]
[1724031122565,1.337663,2629.8,2629.2,3.80342]
[1724031122770,11.09248,2629.9,2629.3,3.80325]
[1724031122975,7.29,2629.9,2629.4,3.80304]
[1724031123154,7.29,2629.9,2629.2,3.80331]
[1724031123457,7.29,2629.9,2629.0,3.80364]
[1724031123458,7.29,2629.9,2629.4,3.80306]
[1724031123677,3.8022,2630.1,2629.4,3.80306]
[1724031123895,3.8022,2630.1,2629.2,3.80336]
[1724031123896,3.80223,2630.1,2629.2,3.80336]
[1724031124189,3.80254,2629.9,2629.3,3.80328]
[1724031124945,3.80217,2630.1,2629.5,3.80297]
[1724031125256,3.80217,2630.1,2629.6,3.80285]
[1724031125654,3.80217,2630.1,2629.3,7.60639]
[1724031125855,3.80228,2630.0,2629.3,7.90631195]
[1724031126055,3.80217,2630.1,2629.3,7.90631195]
[1724031126056,7.29,2630.3,2629.3,3.80317]
[1724031126261,3.80251,2629.9,2629.3,3.80317]
[1724031126663,2.3159,2630.2,2629.5,3.80298]
[1724031126664,6.11798,2630.2,2629.5,3.80298]
[1724031126863,6.11798,2630.2,2629.3,3.80324]
[1724031126864,3.80239,2630.0,2629.4,0.380317]
[1724031127047,3.80258,2629.8,2629.1,6.12304]
[1724031127687,7.60529,2629.8,2629.1,6.12304]
[1724031127989,3.80283,2629.7,2629.1,6.12304]
[1724031128155,2.3921,2629.7,2629.1,3.80344]
[1724031128341,3.80301,2629.5,2628.9,5.4984]
[1724031128541,2.3921,2629.7,2628.9,2.4984]
[1724031128774,3.80303,2629.5,2628.9,2.4984]
[1724031128997,7.60615,2629.5,2628.9,3.809048]
[1724031129199,3.8033,2629.3,2628.6,2.4984]
[1724031129343,3.8038,2629.0,2628.4,3.80458]
[1724031129694,3.80417,2628.7,2627.7,2.4502]
[1724031129848,3.80468,2628.4,2627.7,6.25572]
[1724031130046,3.80468,2628.4,2627.8,3.80545]
[1724031131080,3.80468,2628.4,2627.9,3.0]
[1724031132038,3.80468,2628.4,2627.9,6.80531]
[1724031132247,3.80468,2628.4,2627.9,4.306087]
[1724031132454,3.8046,2628.4,2627.9,4.306087]
[1724031132653,3.80446,2628.5,2627.9,4.306087]
[1724031133083,3.80461,2628.4,2627.9,4.306087]
[1724031133378,3.80478,2628.3,2627.9,3.0]
[1724031133546,3.80478,2628.3,2627.8,6.80545]
[1724031134048,3.80453,2628.5,2627.8,6.80533]
[1724031134247,3.80467,2628.4,2627.8,6.80533]
[1724031134573,3.80453,2628.5,2627.8,6.80533]
[1724031134574,3.80477,2628.3,2627.8,6.80533]
[1724031134767,3.80477,2628.3,2627.8,7.9044894]
[1724031135480,3.80489,2628.2,2627.8,4.0991594]
[1724031135644,3.80477,2628.3,2627.8,4.9045794]
[1724031135847,3.80452,2628.5,2627.9,3.82851434]
[1724031136140,3.80452,2628.5,2627.9,7.63382434]
[1724031136141,3.80445,2628.5,2627.9,7.63382434]
[1724031136344,3.80473,2628.4,2627.9,3.82851434]
[1724031137001,3.80445,2628.5,2627.9,3.82851434]
[1724031137157,7.609,2628.5,2628.0,0.76338843]
[1724031137347,3.80445,2628.5,2628.0,0.83948421]
[1724031138084,3.8046,2628.4,2628.0,0.83948421]
[1724031138246,2.4295,2628.7,2627.9,5.2983]
[1724031138247,3.80474,2628.3,2627.9,5.2983]
[1724031138447,3.80474,2628.3,2627.8,3.0]
[1724031138652,3.80488,2628.2,2627.8,3.0]
[1724031138851,3.80488,2628.2,2627.7,3.0]
[1724031139186,3.80474,2628.3,2627.7,6.8056]
[1724031139351,3.80474,2628.3,2627.7,3.0]
[1724031139558,3.80496,2628.2,2627.7,3.0]
[1724031140961,7.60958,2628.3,2627.7,6.80555]
[1724031141294,3.80474,2628.3,2627.7,8.5446395]
[1724031141480,3.80474,2628.3,2627.8,3.80545]
[1724031142192,3.80474,2628.3,2627.7,4.7390895]
[1724031142394,3.80474,2628.3,2627.7,8.5446795]
[1724031142701,3.80435,2628.6,2628.0,3.80503]
[1724031142896,3.80419,2628.7,2628.1,6.25052]
[1724031143058,3.80419,2628.7,2628.2,3.80485]
[1724031143253,7.29,2628.8,2628.3,3.80473]
[1724031143455,3.80394,2628.9,2628.4,0.760958]
[1724031143800,3.80416,2628.7,2628.0,8.14536325]
[1724031143959,3.80416,2628.7,2628.0,4.34027325]
[1724031144170,3.80445,2628.5,2628.0,4.34027325]
[1724031144375,3.80416,2628.7,2628.0,4.34027325]
[1724031144577,3.8043,2628.6,2628.0,8.14535325]
[1724031144909,3.80416,2628.7,2628.1,0.81453532]
[1724031145082,3.80395,2628.9,2628.3,3.80465]
[1724031145430,3.80395,2628.9,2628.3,6.06845]
[1724031145975,7.60732,2629.1,2628.5,3.80442]
[1724031146201,5.52714134,2629.1,2628.5,3.80442]
[1724031146397,5.52714134,2629.1,2628.3,9.87311]
[1724031146909,3.80366,2629.1,2628.4,3.80453]
[1724031147084,3.80366,2629.1,2628.5,3.80438]
[1724031147706,7.60734,2629.1,2628.5,3.80438]
[1724031148109,3.80366,2629.1,2628.6,3.8043]
[1724031148414,3.80366,2629.1,2628.6,4.565168]
[1724031148578,3.80366,2629.1,2628.6,0.760868]
[1724031148774,3.80373,2629.0,2628.5,3.80438]
[1724031148971,3.80373,2629.0,2628.3,6.06845]
[1724031149177,3.80413,2628.8,2628.1,3.80491]
[1724031149373,3.80461,2628.4,2628.0,5.449]
[1724031149614,3.80449,2628.5,2628.0,5.449]
[1724031150190,3.80449,2628.5,2628.0,9.25416]
[1724031150393,3.80431,2628.6,2628.0,10.560098]
[1724031150590,3.80394,2628.9,2628.2,3.80478]
[1724031150779,2.3707,2629.1,2628.4,3.80456]
[1724031150977,7.60704,2629.2,2628.6,3.80428]
[1724031151175,3.80351,2629.2,2628.6,3.80428]
[1724031151533,5.293214,2629.2,2628.6,3.80428]
[1724031151915,3.80367,2629.1,2628.6,3.80428]
[1724031152964,3.80351,2629.2,2628.7,3.80415]
[1724031153151,11.09297,2629.6,2629.0,3.80371]
[1724031153443,11.09297,2629.6,2629.1,0.380371]
[1724031153444,11.09295,2629.6,2629.1,0.380371]
[1724031153605,14.8959,2629.6,2629.0,6.17371]
[1724031154049,11.09295,2629.6,2629.0,6.17371]
[1724031154407,7.29,2629.6,2629.1,3.8035]
[1724031154609,11.09286,2629.6,2629.0,6.17371]
[1724031154807,7.29,2629.6,2629.0,7.171403]
[1724031155037,3.80264,2629.8,2629.2,3.80334]
[1724031155241,0.05807634,2629.9,2629.3,3.80321]
[1724031155242,3.80243,2629.9,2629.3,3.80321]
[1724031155702,3.80243,2629.9,2628.4,6.24278]
[1724031155703,3.80368,2629.1,2628.4,6.24278]
[1724031155903,3.80368,2629.1,2628.5,3.8044]
[1724031157348,3.80366,2629.1,2628.5,3.8044]
[1724031157515,3.80366,2629.1,2628.5,5.109118]
[1724031157861,3.80338,2629.3,2628.6,3.80416]
[1724031158010,7.60676,2629.3,2628.6,7.60835]
[1724031158366,3.80338,2629.3,2628.7,0.8913068]
[1724031158664,3.80345,2629.2,2628.7,0.8913068]
[1724031159931,3.80338,2629.3,2628.7,0.8913068]
[1724031160134,3.80338,2629.3,2628.7,4.6954368]
[1724031160367,7.60676,2629.3,2628.7,3.80413]
[1724031160872,7.60676,2629.3,2628.4,2.4383]
[1724031160873,11.09302,2629.5,2628.8,3.804]
[1724031161078,3.80324,2629.4,2628.9,0.3804]
[1724031161289,3.80324,2629.4,2628.8,6.28492]
[1724031161489,7.29,2629.5,2629.0,3.8036]
[1724031161694,3.80259,2629.8,2629.2,3.80333]
[1724031161847,3.80247,2629.9,2629.3,2.3423]
[1724031162029,8.941937,2629.9,2629.3,2.3423]
[1724031162228,8.941937,2629.9,2628.7,6.80412]
[1724031162229,2.4758,2629.5,2628.4,2.3875]
[1724031162464,2.4758,2629.5,2628.1,3.80492]
[1724031162465,3.80417,2628.7,2628.1,3.80492]
[1724031162788,3.80417,2628.7,2627.9,6.1927]
[1724031163003,3.80417,2628.7,2628.0,3.80509]
[1724031163157,7.60846,2628.7,2628.0,3.80509]
[1724031163471,3.80435,2628.6,2628.0,3.80509]
[1724031163683,3.80417,2628.7,2628.0,4.424339]
[1724031163897,3.80395,2628.9,2628.0,4.424359]
[1724031164069,3.80395,2628.9,2628.2,3.80475]
[1724031164233,3.80395,2628.9,2628.2,4.6276599]
[1724031164448,3.80365,2629.1,2628.4,3.80449]
[1724031164752,3.80365,2629.1,2628.6,3.80428]
[1724031164948,7.60734,2629.1,2628.4,7.609]
[1724031165148,7.60734,2629.1,2628.5,0.606049]
[1724031165354,3.80365,2629.1,2628.5,0.606049]
[1724031165537,3.80365,2629.1,2628.5,4.410469]
[1724031166151,3.80337,2629.3,2628.6,4.6257659]
[1724031166387,3.80337,2629.3,2628.7,3.80403]
[1724031167170,3.80337,2629.3,2628.6,3.80427]
[1724031167171,6.2887,2629.7,2629.1,3.80352]
[1724031167484,2.4643,2630.0,2629.3,3.80321]
[1724031167778,3.80243,2629.9,2629.3,3.80321]
[1724031167996,2.4643,2629.8,2628.7,3.0]
[1724031168181,2.4643,2629.8,2628.5,1.40635535]
[1724031168182,3.80302,2629.5,2628.9,3.80378]
[1724031168841,3.80316,2629.4,2628.8,3.80396]
[1724031169378,3.80316,2629.4,2628.8,3.80398]
[1724031169577,3.8034,2629.3,2628.7,3.80408]
[1724031170283,3.8034,2629.3,2628.5,3.606049]
[1724031170284,3.8037,2629.1,2628.5,3.606049]
[1724031170481,3.80374,2629.0,2628.5,7.410469]
[1724031171565,7.60759,2629.0,2628.5,3.0]
[1724031171771,3.80388,2628.9,2628.5,3.0]
[1724031172093,3.80388,2628.9,2628.4,3.0]
[1724031173548,3.80474,2628.3,2627.4,0.06630628]
[1724031173796,3.80495,2628.2,2627.6,3.80565]
[1724031174095,3.80495,2628.2,2627.6,7.61131]
[1724031174096,3.80489,2628.2,2627.6,7.61131]
[1724031174316,3.80489,2628.2,2627.7,0.761131]
[1724031174524,3.80474,2628.3,2627.7,0.761131]
[1724031175020,3.80498,2628.2,2627.6,3.80565]
[1724031175202,3.80474,2628.3,2627.7,3.0]
[1724031175408,3.80489,2628.2,2627.7,3.0]
[1724031175584,3.80489,2628.2,2627.7,3.680565]
[1724031175783,3.80474,2628.3,2627.7,3.680565]
[1724031175991,2.2509,2628.6,2627.7,6.069765]
[1724031176243,2.2509,2628.6,2628.0,3.80509]
[1724031177120,6.05522,2628.6,2628.0,7.61016]
[1724031177611,3.80388,2628.9,2628.3,3.80463]
[1724031178112,3.80388,2628.9,2628.1,6.80503]
[1724031178113,3.80402,2628.8,2628.1,10.60993]
[1724031178316,4.432018,2628.8,2628.1,6.8049]
[1724031178614,3.80402,2628.8,2628.1,6.8049]
[1724031178811,3.80402,2628.8,2628.2,3.80487]
[1724031178996,3.80419,2628.7,2628.1,6.80501]
[1724031179522,3.80431,2628.6,2628.1,3.0]
[1724031179855,3.80431,2628.6,2627.9,3.80524]
[1724031179856,3.80431,2628.6,2628.0,3.0]
[1724031180369,2.432,2628.7,2627.9,3.80524]
[1724031180796,3.80468,2628.4,2627.7,6.19469]
[1724031180997,3.80474,2628.3,2627.8,3.0]
[1724031181183,4.185214,2628.3,2627.8,3.0]
[1724031181481,4.185214,2628.3,2627.7,3.8056]
[1724031181689,3.80474,2628.3,2627.8,3.0]
[1724031182366,3.80451,2628.5,2627.8,3.0]
[1724031182367,3.80451,2628.5,2627.9,3.80522]
[1724031182571,3.80433,2628.6,2628.0,3.80514]
[1724031182844,3.80445,2628.5,2627.9,3.80522]
[1724031183424,3.80445,2628.5,2628.0,3.80509]
[1724031183425,3.80449,2628.5,2628.0,3.80509]
[1724031184134,7.29,2629.0,2628.2,3.80475]
[1724031184135,3.80394,2628.9,2628.2,3.80475]
[1724031184276,11.09381,2629.0,2628.4,3.80445]
[1724031184628,12.05365,2629.0,2628.4,3.80445]
[1724031185290,3.8039,2628.9,2628.3,3.80463]
[1724031185821,7.60786,2628.9,2628.3,3.80463]
[1724031185970,7.60786,2628.9,2628.2,0.24146]
[1724031185971,7.60853,2628.7,2628.1,3.80494]
[1724031186177,3.31546,2628.7,2628.2,3.0]
[1724031186619,3.80407,2628.8,2628.2,3.0]
[1724031186825,3.80431,2628.6,2628.2,3.0]
[1724031187399,3.80406,2628.8,2628.2,3.0]
[1724031187719,14.89766,2629.0,2628.4,3.80458]
[1724031187872,12.812496,2629.0,2628.4,3.80456]
[1724031188072,16.616326,2629.0,2628.4,3.80456]
[1724031188276,12.812496,2629.0,2628.4,3.80456]
[1724031188627,12.812496,2629.0,2628.5,3.8044]
[1724031188628,11.09381,2629.0,2628.5,3.8044]
[1724031188805,7.29,2629.0,2628.6,3.80429]
[1724031189128,3.8035,2629.2,2628.6,3.80429]
[1724031189349,0.02915799,2629.3,2628.7,3.80413]
[1724031189350,3.80332,2629.3,2628.7,3.80413]
[1724031189550,13.08549208,2629.4,2628.7,3.80413]
[1724031189551,3.80346,2629.2,2628.7,3.80413]
[1724031189762,3.80359,2629.1,2628.5,3.80436]
[1724031190055,3.80377,2629.0,2628.4,3.80451]
[1724031190252,3.80377,2629.0,2628.4,0.914784]
[1724031190407,3.80377,2629.0,2628.4,7.719374]
[1724031190610,6.26352,2629.0,2628.4,3.0]
[1724031190921,3.8041,2628.8,2628.3,3.0]
[1724031191123,3.80419,2628.7,2628.2,3.0]
[1724031191341,3.8041,2628.8,2628.3,3.80472]
[1724031191650,3.80396,2628.9,2628.4,3.0]
[1724031191818,3.80406,2628.8,2628.4,3.0]
[1724031192151,3.80359,2629.1,2628.5,3.80435]
[1724031192446,11.09321,2629.4,2628.7,3.80405]
[1724031192617,7.29,2629.4,2628.9,3.80378]
[1724031192825,7.29,2629.4,2629.0,3.80362]
[1724031193030,7.29,2629.4,2629.1,3.80357]
[1724031193243,3.80265,2629.8,2629.3,3.8032]
[1724031193442,3.80265,2629.8,2629.2,3.8033]
[1724031193753,9.53233621,2629.8,2629.2,3.8033]
[1724031193936,5.72967621,2629.8,2629.2,3.8033]
[1724031194136,3.80265,2629.8,2629.2,3.8033]
[1724031194707,3.80265,2629.8,2629.0,6.08126]
[1724031194708,3.8028,2629.7,2629.1,3.80356]
[1724031194910,3.80265,2629.8,2629.2,3.8034]
[1724031195110,7.60475,2630.0,2629.3,3.80326]
[1724031195859,3.80245,2629.9,2629.3,3.80326]
[1724031196626,3.80242,2629.9,2629.4,3.80314]
[1724031197057,3.80257,2629.8,2629.2,3.80334]
[1724031197358,7.60527,2629.8,2629.2,3.80334]
[1724031197560,6.13843,2629.7,2629.0,3.80365]
[1724031197759,6.13843,2629.7,2628.9,3.80386]
[1724031197760,3.8031,2629.5,2628.9,3.80386]
[1724031197912,3.8031,2629.5,2629.0,3.80371]
[1724031198113,0.69451345,2629.6,2629.0,3.8036]
[1724031198313,4.49738345,2629.6,2629.0,7.60724]
[1724031198538,6.13849,2629.7,2629.1,3.80348]
[1724031198742,3.8025,2629.9,2629.3,3.80328]
[1724031199071,3.80266,2629.8,2629.1,9.90314]
[1724031199280,4.42813598,2629.9,2629.1,6.09966]
[1724031199281,3.80271,2629.7,2629.1,6.09966]
[1724031199566,3.80286,2629.6,2628.9,3.80379]
[1724031199725,3.80286,2629.6,2629.1,3.80356]
[1724031200326,3.80302,2629.5,2628.9,3.80374]
[1724031200515,0.760557,2629.5,2628.9,3.80374]
[1724031200721,4.563557,2629.5,2628.9,7.60752]